[Event "December 19 Late 2023"]
[Site "https://www.chess.com"]
[Date "2023.12.19"]
[Round "7"]
[White "Vafin, Ayrat"]
[Black "Korol, Dimitry"]
[Result "1-0"]
[Board "79"]
[TimeControl "180+1"]
[WhiteFideId "4146530"]
[BlackFideId "14108003"]
[WhiteElo "2317"]
[BlackElo "2262"]
[WhiteTeam "RUS"]
[BlackTeam "UKR"]
[WhiteClock "0:00:20"]
[BlackClock "0:00:00"]

1. Nf3 {[%clk 0:03:00]}  c5 {[%clk 0:03:00]} 2. g3 {[%clk 0:03:01]}  g6 {[%clk 0:03:00]} 3. Bg2 {[%clk 0:03:00]}  Bg7 {[%clk 0:03:00]} 4. d4 {[%clk 0:03:01]}  cxd4 {[%clk 0:03:00]} 5. Nxd4 {[%clk 0:03:01]}  Nc6 {[%clk 0:03:00]} 6. Nxc6 {[%clk 0:03:02]}  bxc6 {[%clk 0:03:01]} 7. c4 {[%clk 0:03:02]}  Nf6 {[%clk 0:03:01]} 8. O-O {[%clk 0:03:02]}  O-O {[%clk 0:03:01]} 9. Nc3 {[%clk 0:03:03]}  d6 {[%clk 0:03:02]} 10. Qc2 {[%clk 0:02:55]}  Rb8 {[%clk 0:02:56]} 11. Rb1 {[%clk 0:02:55]}  Be6 {[%clk 0:02:25]} 12. b3 {[%clk 0:02:52]}  d5 {[%clk 0:02:18]} 13. Bf4 {[%clk 0:02:44]}  Rc8 {[%clk 0:02:13]} 14. Rbd1 {[%clk 0:02:41]}  Qa5 {[%clk 0:02:10]} 15. Bd2 {[%clk 0:02:01]}  Qa6 {[%clk 0:01:41]} 16. Na4 {[%clk 0:01:45]}  Bf5 {[%clk 0:01:24]} 17. Qc1 {[%clk 0:01:38]}  dxc4 {[%clk 0:01:21]} 18. Nc5 {[%clk 0:01:29]}  Qxa2 {[%clk 0:01:12]} 19. Qxc4 {[%clk 0:01:28]}  Rfd8 {[%clk 0:01:04]} 20. Bc3 {[%clk 0:01:07]}  Rxd1 {[%clk 0:00:14]} 21. Rxd1 {[%clk 0:01:07]}  h5 {[%clk 0:00:05]} 22. e4 {[%clk 0:00:47]}  Bg4 {[%clk 0:00:05]} 23. Ra1 {[%clk 0:00:46]}  Qc2 {[%clk 0:00:04]} 24. h3 {[%clk 0:00:39]}  Bd7 {[%clk 0:00:02]} 25. Rxa7 {[%clk 0:00:24]}  Be8 {[%clk 0:00:00]} 26. Rxe7 {[%clk 0:00:20]} 1-0

[Event "December 19 Late 2023"]
[Site "https://www.chess.com"]
[Date "2023.12.19"]
[Round "7"]
[White "Munoz Sanchez, Miguel"]
[Black "Shapiro, Viktor"]
[Result "0-1"]
[Board "84"]
[TimeControl "180+1"]
[WhiteFideId "3600734"]
[BlackFideId "4175700"]
[WhiteElo "2124"]
[BlackElo "2044"]
[WhiteTeam "ECU"]
[BlackTeam "RUS"]
[WhiteClock "0:00:02"]
[BlackClock "0:00:47"]

1. d4 {[%clk 0:03:00]}  Nf6 {[%clk 0:03:00]} 2. Nf3 {[%clk 0:03:00]}  c5 {[%clk 0:03:00]} 3. c4 {[%clk 0:02:59]}  cxd4 {[%clk 0:03:01]} 4. Nxd4 {[%clk 0:02:59]}  Nc6 {[%clk 0:03:01]} 5. Nc2 {[%clk 0:02:58]}  g6 {[%clk 0:03:00]} 6. g3 {[%clk 0:02:58]}  Bg7 {[%clk 0:03:01]} 7. Bg2 {[%clk 0:02:58]}  O-O {[%clk 0:03:01]} 8. Nc3 {[%clk 0:02:58]}  d6 {[%clk 0:03:02]} 9. O-O {[%clk 0:02:58]}  Be6 {[%clk 0:03:02]} 10. b3 {[%clk 0:02:55]}  a6 {[%clk 0:03:02]} 11. Bb2 {[%clk 0:02:54]}  Rc8 {[%clk 0:03:02]} 12. Rc1 {[%clk 0:02:52]}  Qa5 {[%clk 0:03:02]} 13. e4 {[%clk 0:02:30]}  b5 {[%clk 0:03:01]} 14. cxb5 {[%clk 0:02:24]}  axb5 {[%clk 0:03:02]} 15. Ne3 {[%clk 0:02:23]}  b4 {[%clk 0:03:01]} 16. Na4 {[%clk 0:02:16]}  Rfd8 {[%clk 0:02:49]} 17. Nd5 {[%clk 0:02:16]}  Bxd5 {[%clk 0:02:32]} 18. exd5 {[%clk 0:02:13]}  Ne5 {[%clk 0:02:29]} 19. Bd4 {[%clk 0:01:53]}  Rxc1 {[%clk 0:02:18]} 20. Qxc1 {[%clk 0:01:51]}  Nxd5 {[%clk 0:02:16]} 21. Qa1 {[%clk 0:01:28]}  Bf6 {[%clk 0:01:53]} 22. Rd1 {[%clk 0:01:23]}  Rc8 {[%clk 0:01:24]} 23. f4 {[%clk 0:01:09]}  Ng4 {[%clk 0:01:19]} 24. Bxd5 {[%clk 0:01:04]}  Qxd5 {[%clk 0:01:19]} 25. Bxf6 {[%clk 0:01:03]}  Qf3 {[%clk 0:01:14]} 26. Rf1 {[%clk 0:00:04]}  Qe3+ {[%clk 0:01:14]} 27. Kg2 {[%clk 0:00:03]}  Rc2+ {[%clk 0:01:02]} 28. Kh3 {[%clk 0:00:02]}  h5 {[%clk 0:00:58]} 29. Rh1 {[%clk 0:00:02]}  Qf2 {[%clk 0:00:49]} 30. Qg1 {[%clk 0:00:02]}  Qxg1 {[%clk 0:00:47]} 31. Rxg1 {[%clk 0:00:02]}  Rxh2# {[%clk 0:00:47]} 0-1

[Event "December 19 Late 2023"]
[Site "https://www.chess.com"]
[Date "2023.12.19"]
[Round "7"]
[White "Reprintsev, Alexander"]
[Black "Polster, Christian"]
[Result "0-1"]
[Board "86"]
[TimeControl "180+1"]
[WhiteFideId "14100541"]
[BlackFideId "12965081"]
[WhiteElo "2229"]
[BlackElo "2141"]
[WhiteTeam "UKR"]
[BlackTeam "GER"]
[WhiteClock "0:00:13"]
[BlackClock "0:00:06"]

1. e4 {[%clk 0:03:00]}  c6 {[%clk 0:02:55]} 2. Nc3 {[%clk 0:02:58]}  d5 {[%clk 0:02:55]} 3. Nf3 {[%clk 0:02:58]}  dxe4 {[%clk 0:02:51]} 4. Nxe4 {[%clk 0:02:56]}  Nf6 {[%clk 0:02:52]} 5. Qe2 {[%clk 0:02:55]}  Nxe4 {[%clk 0:02:28]} 6. Qxe4 {[%clk 0:02:54]}  Qd5 {[%clk 0:02:16]} 7. Qf4 {[%clk 0:02:52]}  Qf5 {[%clk 0:02:15]} 8. Qe3 {[%clk 0:02:51]}  Nd7 {[%clk 0:02:08]} 9. Bd3 {[%clk 0:02:46]}  Qc5 {[%clk 0:02:07]} 10. O-O {[%clk 0:02:27]}  e6 {[%clk 0:01:58]} 11. b3 {[%clk 0:02:23]}  Be7 {[%clk 0:01:55]} 12. Bb2 {[%clk 0:02:21]}  O-O {[%clk 0:01:48]} 13. Rae1 {[%clk 0:02:18]}  Qxe3 {[%clk 0:01:46]} 14. fxe3 {[%clk 0:02:15]}  b5 {[%clk 0:01:32]} 15. Nd4 {[%clk 0:01:56]}  Bb7 {[%clk 0:01:17]} 16. e4 {[%clk 0:01:46]}  Nc5 {[%clk 0:01:07]} 17. Rf3 {[%clk 0:01:41]}  Nxd3 {[%clk 0:01:05]} 18. Rxd3 {[%clk 0:01:39]}  Rfd8 {[%clk 0:01:01]} 19. Ne2 {[%clk 0:01:32]}  Rxd3 {[%clk 0:00:56]} 20. cxd3 {[%clk 0:01:33]}  Rd8 {[%clk 0:00:52]} 21. Nc1 {[%clk 0:01:30]}  c5 {[%clk 0:00:34]} 22. Kf2 {[%clk 0:01:25]}  Bg5 {[%clk 0:00:29]} 23. Ke2 {[%clk 0:01:21]}  b4 {[%clk 0:00:17]} 24. Be5 {[%clk 0:01:19]}  f6 {[%clk 0:00:16]} 25. Bg3 {[%clk 0:01:15]}  e5 {[%clk 0:00:12]} 26. Bf2 {[%clk 0:01:10]}  Rc8 {[%clk 0:00:12]} 27. Be3 {[%clk 0:01:09]}  Bxe3 {[%clk 0:00:11]} 28. dxe3 {[%clk 0:01:08]}  Kf7 {[%clk 0:00:11]} 29. Rd1 {[%clk 0:01:05]}  Ke6 {[%clk 0:00:09]} 30. Rd2 {[%clk 0:01:06]}  a5 {[%clk 0:00:08]} 31. Rc2 {[%clk 0:01:04]}  Ba6 {[%clk 0:00:07]} 32. Ke1 {[%clk 0:00:59]}  Kd6 {[%clk 0:00:07]} 33. d4 {[%clk 0:00:58]}  exd4 {[%clk 0:00:05]} 34. exd4 {[%clk 0:00:57]}  Rc7 {[%clk 0:00:05]} 35. dxc5+ {[%clk 0:00:40]}  Rxc5 {[%clk 0:00:06]} 36. Rxc5 {[%clk 0:00:40]}  Kxc5 {[%clk 0:00:07]} 37. Kf2 {[%clk 0:00:20]}  Kd4 {[%clk 0:00:06]} 38. Kf3 {[%clk 0:00:20]}  Kc3 {[%clk 0:00:05]} 39. g4 {[%clk 0:00:19]}  Kb2 {[%clk 0:00:04]} 40. Ne2 {[%clk 0:00:18]}  Bxe2+ {[%clk 0:00:05]} 41. Kxe2 {[%clk 0:00:17]}  Kxa2 {[%clk 0:00:06]} 42. g5 {[%clk 0:00:18]}  Kxb3 {[%clk 0:00:05]} 43. h4 {[%clk 0:00:18]}  a4 {[%clk 0:00:05]} 44. h5 {[%clk 0:00:19]}  h6 {[%clk 0:00:05]} 45. gxh6 {[%clk 0:00:13]}  gxh6 {[%clk 0:00:06]} 0-1

[Event "December 19 Late 2023"]
[Site "https://www.chess.com"]
[Date "2023.12.19"]
[Round "7"]
[White "Rama, Tejas"]
[Black "Silvestre, Christian"]
[Result "1-0"]
[Board "88"]
[TimeControl "180+1"]
[WhiteFideId "30907381"]
[BlackFideId "30956269"]
[WhiteElo "2089"]
[BlackElo "2276"]
[WhiteTeam "USA"]
[BlackTeam "USA"]
[WhiteClock "0:00:26"]
[BlackClock "0:00:00"]

1. d4 {[%clk 0:03:00]}  e5 {[%clk 0:02:57]} 2. dxe5 {[%clk 0:02:59]}  Nc6 {[%clk 0:02:56]} 3. Nf3 {[%clk 0:02:56]}  Qe7 {[%clk 0:02:51]} 4. Nc3 {[%clk 0:02:52]}  Nxe5 {[%clk 0:02:49]} 5. Bf4 {[%clk 0:02:42]}  Nxf3+ {[%clk 0:02:38]} 6. gxf3 {[%clk 0:02:43]}  d6 {[%clk 0:02:38]} 7. Qd2 {[%clk 0:02:37]}  Nf6 {[%clk 0:02:27]} 8. O-O-O {[%clk 0:02:26]}  Be6 {[%clk 0:02:14]} 9. e4 {[%clk 0:02:19]}  O-O-O {[%clk 0:02:14]} 10. Qe3 {[%clk 0:02:04]}  Kb8 {[%clk 0:02:06]} 11. Nb5 {[%clk 0:01:59]}  b6 {[%clk 0:02:05]} 12. Qa3 {[%clk 0:01:54]}  a5 {[%clk 0:02:02]} 13. Nd4 {[%clk 0:01:46]}  Bd7 {[%clk 0:02:00]} 14. Bc4 {[%clk 0:01:35]}  Nh5 {[%clk 0:01:58]} 15. Be3 {[%clk 0:01:29]}  c5 {[%clk 0:01:57]} 16. Nb5 {[%clk 0:01:25]}  Bxb5 {[%clk 0:01:55]} 17. Bxb5 {[%clk 0:01:25]}  Qc7 {[%clk 0:01:54]} 18. Rd3 {[%clk 0:01:16]}  Be7 {[%clk 0:01:47]} 19. Rhd1 {[%clk 0:01:12]}  Bf6 {[%clk 0:01:41]} 20. Bc4 {[%clk 0:01:04]}  Be5 {[%clk 0:01:40]} 21. Rb3 {[%clk 0:01:01]}  Ka7 {[%clk 0:01:36]} 22. Bd5 {[%clk 0:00:57]}  Nf4 {[%clk 0:01:36]} 23. Rb5 {[%clk 0:00:38]}  Ne2+ {[%clk 0:01:34]} 24. Kb1 {[%clk 0:00:37]}  Nd4 {[%clk 0:01:34]} 25. Rxd4 {[%clk 0:00:35]}  Bxd4 {[%clk 0:01:27]} 26. Bd2 {[%clk 0:00:31]}  Qd7 {[%clk 0:01:16]} 27. Rxa5+ {[%clk 0:00:25]}  bxa5 {[%clk 0:01:15]} 28. Qxa5+ {[%clk 0:00:26]}  Kb8 {[%clk 0:00:00]} 29. Qa8+ {[%clk 0:00:26]} 1-0

[Event "December 19 Late 2023"]
[Site "https://www.chess.com"]
[Date "2023.12.19"]
[Round "7"]
[White "Travadon, Loic"]
[Black "Yashmetov, Mikhail"]
[Result "0-1"]
[Board "90"]
[TimeControl "180+1"]
[WhiteFideId "26092131"]
[BlackFideId "24198900"]
[WhiteElo "2406"]
[BlackElo "2220"]
[WhiteTeam "FRA"]
[BlackTeam "RUS"]
[WhiteClock "0:00:06"]
[BlackClock "0:01:19"]

1. e4 {[%clk 0:03:00]}  c6 {[%clk 0:02:57]} 2. Nf3 {[%clk 0:02:58]}  d5 {[%clk 0:02:57]} 3. d3 {[%clk 0:02:59]}  dxe4 {[%clk 0:02:56]} 4. dxe4 {[%clk 0:03:00]}  Qxd1+ {[%clk 0:02:56]} 5. Kxd1 {[%clk 0:03:01]}  f6 {[%clk 0:02:55]} 6. Bc4 {[%clk 0:02:55]}  e5 {[%clk 0:02:55]} 7. Ke2 {[%clk 0:02:54]}  b5 {[%clk 0:02:50]} 8. Bb3 {[%clk 0:02:53]}  c5 {[%clk 0:02:50]} 9. c4 {[%clk 0:02:51]}  b4 {[%clk 0:02:46]} 10. Ba4+ {[%clk 0:02:51]}  Bd7 {[%clk 0:02:45]} 11. Bxd7+ {[%clk 0:02:48]}  Kxd7 {[%clk 0:02:46]} 12. Rd1+ {[%clk 0:02:46]}  Ke6 {[%clk 0:02:46]} 13. b3 {[%clk 0:02:46]}  Nc6 {[%clk 0:02:45]} 14. Be3 {[%clk 0:02:44]}  Nd4+ {[%clk 0:02:41]} 15. Bxd4 {[%clk 0:02:43]}  cxd4 {[%clk 0:02:40]} 16. Kd3 {[%clk 0:02:42]}  Nh6 {[%clk 0:02:33]} 17. h3 {[%clk 0:02:40]}  Nf7 {[%clk 0:02:32]} 18. a3 {[%clk 0:02:35]}  bxa3 {[%clk 0:02:29]} 19. Nxa3 {[%clk 0:02:36]}  Nd6 {[%clk 0:02:23]} 20. b4 {[%clk 0:02:27]}  Nb7 {[%clk 0:01:54]} 21. Rdb1 {[%clk 0:02:17]}  Be7 {[%clk 0:01:48]} 22. Nb5 {[%clk 0:02:05]}  Kd7 {[%clk 0:01:46]} 23. c5 {[%clk 0:02:04]}  a6 {[%clk 0:01:43]} 24. Na3 {[%clk 0:01:56]}  a5 {[%clk 0:01:43]} 25. Nc4 {[%clk 0:01:53]}  Bd8 {[%clk 0:01:37]} 26. Nfd2 {[%clk 0:01:22]}  Bc7 {[%clk 0:01:36]} 27. Nb6+ {[%clk 0:00:58]}  Bxb6 {[%clk 0:01:35]} 28. cxb6 {[%clk 0:00:59]}  axb4 {[%clk 0:01:34]} 29. Rxa8 {[%clk 0:00:53]}  Rxa8 {[%clk 0:01:35]} 30. Rxb4 {[%clk 0:00:52]}  Ra3+ {[%clk 0:01:36]} 31. Kc4 {[%clk 0:00:47]}  Kc6 {[%clk 0:01:34]} 32. Nb3 {[%clk 0:00:44]}  h5 {[%clk 0:01:23]} 33. g4 {[%clk 0:00:42]}  h4 {[%clk 0:01:23]} 34. f3 {[%clk 0:00:35]}  g5 {[%clk 0:01:22]} 35. Kd3 {[%clk 0:00:26]}  Rxb3+ {[%clk 0:01:19]} 36. Rxb3 {[%clk 0:00:25]}  Nc5+ {[%clk 0:01:19]} 37. Kc4 {[%clk 0:00:26]}  Nxb3 {[%clk 0:01:20]} 38. Kxb3 {[%clk 0:00:26]}  Kxb6 {[%clk 0:01:21]} 39. Kb4 {[%clk 0:00:27]}  Kc7 {[%clk 0:01:19]} 40. Kb3 {[%clk 0:00:21]}  Kd6 {[%clk 0:01:18]} 41. Kb4 {[%clk 0:00:21]}  Kc6 {[%clk 0:01:19]} 42. Kc4 {[%clk 0:00:21]}  Kb6 {[%clk 0:01:19]} 43. Kb4 {[%clk 0:00:21]}  Ka7 {[%clk 0:01:20]} 44. Kb3 {[%clk 0:00:20]}  Kb7 {[%clk 0:01:18]} 45. Kb4 {[%clk 0:00:09]}  Kb6 {[%clk 0:01:18]} 46. Kc4 {[%clk 0:00:09]}  Ka5 {[%clk 0:01:19]} 47. Kd5 {[%clk 0:00:07]}  d3 {[%clk 0:01:18]} 48. Ke6 {[%clk 0:00:08]}  d2 {[%clk 0:01:18]} 49. Kxf6 {[%clk 0:00:08]}  d1=Q {[%clk 0:01:19]} 50. Kxe5 {[%clk 0:00:09]}  Qxf3 {[%clk 0:01:19]} 51. Kd5 {[%clk 0:00:08]}  Qxh3 {[%clk 0:01:19]} 52. e5 {[%clk 0:00:06]}  Qxg4 {[%clk 0:01:19]} 0-1

[Event "December 19 Late 2023"]
[Site "https://www.chess.com"]
[Date "2023.12.19"]
[Round "7"]
[White "Azali, Tannaz"]
[Black "UnTucopalaTimba"]
[Result "1-0"]
[Board "91"]
[TimeControl "180+1"]
[WhiteFideId "12537721"]
[WhiteElo "1828"]
[BlackElo "2220"]
[WhiteTeam "IRI"]
[WhiteClock "0:01:10"]
[BlackClock "0:00:31"]

1. Nf3 {[%clk 0:03:00]}  d5 {[%clk 0:02:57]} 2. g3 {[%clk 0:03:00]}  Nf6 {[%clk 0:02:56]} 3. Bg2 {[%clk 0:03:01]}  c5 {[%clk 0:02:56]} 4. O-O {[%clk 0:03:02]}  Nc6 {[%clk 0:02:55]} 5. c4 {[%clk 0:03:00]}  e6 {[%clk 0:02:54]} 6. Nc3 {[%clk 0:02:59]}  dxc4 {[%clk 0:02:48]} 7. Qa4 {[%clk 0:02:58]}  Be7 {[%clk 0:02:46]} 8. Qxc4 {[%clk 0:02:57]}  O-O {[%clk 0:02:44]} 9. d3 {[%clk 0:02:57]}  a6 {[%clk 0:02:35]} 10. Bg5 {[%clk 0:02:49]}  h6 {[%clk 0:02:31]} 11. Bxf6 {[%clk 0:02:48]}  gxf6 {[%clk 0:02:30]} 12. a4 {[%clk 0:02:45]}  Kg7 {[%clk 0:02:28]} 13. Rad1 {[%clk 0:02:35]}  Qb6 {[%clk 0:02:24]} 14. Qg4+ {[%clk 0:02:26]}  Kh7 {[%clk 0:02:22]} 15. Rb1 {[%clk 0:02:10]}  f5 {[%clk 0:02:10]} 16. Qh5 {[%clk 0:02:09]}  Bf6 {[%clk 0:02:06]} 17. e4 {[%clk 0:02:06]}  Bd7 {[%clk 0:01:52]} 18. exf5 {[%clk 0:02:06]}  exf5 {[%clk 0:01:52]} 19. Nd5 {[%clk 0:02:06]}  Qd8 {[%clk 0:01:49]} 20. Rbc1 {[%clk 0:01:41]}  Bxb2 {[%clk 0:01:39]} 21. Rxc5 {[%clk 0:01:41]}  Be6 {[%clk 0:01:34]} 22. Nf4 {[%clk 0:01:39]}  Ba3 {[%clk 0:01:23]} 23. Rxf5 {[%clk 0:01:37]}  Bxf5 {[%clk 0:01:05]} 24. Qxf5+ {[%clk 0:01:38]}  Kh8 {[%clk 0:01:01]} 25. h4 {[%clk 0:01:22]}  Bd6 {[%clk 0:00:56]} 26. Ng5 {[%clk 0:01:10]}  hxg5 {[%clk 0:00:53]} 27. Be4 {[%clk 0:01:10]}  Kg7 {[%clk 0:00:37]} 28. Nh5+ {[%clk 0:01:09]}  Kg8 {[%clk 0:00:31]} 29. Qh7# {[%clk 0:01:10]} 1-0

[Event "December 19 Late 2023"]
[Site "https://www.chess.com"]
[Date "2023.12.19"]
[Round "7"]
[White "Kovacsy, Barnabas"]
[Black "Vargas Rodriguez, Wilver"]
[Result "0-1"]
[Board "92"]
[TimeControl "180+1"]
[WhiteFideId "769290"]
[BlackFideId "3509672"]
[WhiteElo "2130"]
[BlackElo "2210"]
[WhiteTeam "HUN"]
[BlackTeam "CUB"]
[WhiteClock "0:00:19"]
[BlackClock "0:00:04"]

1. e4 {[%clk 0:03:00]}  e6 {[%clk 0:02:59]} 2. d4 {[%clk 0:02:57]}  d5 {[%clk 0:02:59]} 3. exd5 {[%clk 0:02:57]}  exd5 {[%clk 0:02:58]} 4. Nf3 {[%clk 0:02:58]}  Nf6 {[%clk 0:02:59]} 5. Bd3 {[%clk 0:02:58]}  Be7 {[%clk 0:02:59]} 6. O-O {[%clk 0:02:53]}  O-O {[%clk 0:02:59]} 7. Bf4 {[%clk 0:02:52]}  Bg4 {[%clk 0:02:59]} 8. h3 {[%clk 0:02:52]}  Bh5 {[%clk 0:02:59]} 9. c3 {[%clk 0:02:46]}  Nbd7 {[%clk 0:02:58]} 10. Nbd2 {[%clk 0:02:45]}  c6 {[%clk 0:02:58]} 11. Qc2 {[%clk 0:02:45]}  Bg6 {[%clk 0:02:57]} 12. Bxg6 {[%clk 0:02:44]}  hxg6 {[%clk 0:02:56]} 13. Rfe1 {[%clk 0:02:44]}  Re8 {[%clk 0:02:56]} 14. Ne5 {[%clk 0:02:44]}  Nxe5 {[%clk 0:02:56]} 15. Bxe5 {[%clk 0:02:43]}  Bd6 {[%clk 0:02:53]} 16. Bxf6 {[%clk 0:02:40]}  gxf6 {[%clk 0:02:52]} 17. Nf3 {[%clk 0:02:40]}  Qd7 {[%clk 0:02:48]} 18. Qd2 {[%clk 0:02:37]}  Kg7 {[%clk 0:02:47]} 19. Rxe8 {[%clk 0:02:36]}  Rxe8 {[%clk 0:02:46]} 20. Re1 {[%clk 0:02:36]}  Re4 {[%clk 0:02:45]} 21. Re2 {[%clk 0:02:24]}  Qe6 {[%clk 0:02:44]} 22. Kf1 {[%clk 0:02:22]}  b5 {[%clk 0:02:35]} 23. Qd3 {[%clk 0:02:18]}  Bf4 {[%clk 0:02:13]} 24. b3 {[%clk 0:02:01]}  f5 {[%clk 0:02:10]} 25. Ne1 {[%clk 0:01:58]}  a5 {[%clk 0:02:00]} 26. a4 {[%clk 0:01:56]}  b4 {[%clk 0:01:54]} 27. cxb4 {[%clk 0:01:52]}  axb4 {[%clk 0:01:54]} 28. f3 {[%clk 0:01:52]}  Rxe2 {[%clk 0:01:45]} 29. Qxe2 {[%clk 0:01:53]}  Be3 {[%clk 0:01:44]} 30. Nc2 {[%clk 0:01:50]}  f4 {[%clk 0:01:39]} 31. a5 {[%clk 0:01:48]}  c5 {[%clk 0:01:28]} 32. dxc5 {[%clk 0:01:47]}  d4 {[%clk 0:01:27]} 33. a6 {[%clk 0:01:45]}  Qxb3 {[%clk 0:01:26]} 34. Ne1 {[%clk 0:01:34]}  Qb1 {[%clk 0:01:09]} 35. Qd3 {[%clk 0:01:30]}  Qc1 {[%clk 0:01:03]} 36. Qc2 {[%clk 0:01:27]}  Qa1 {[%clk 0:00:30]} 37. Qd3 {[%clk 0:00:45]}  b3 {[%clk 0:00:23]} 38. c6 {[%clk 0:00:29]}  b2 {[%clk 0:00:14]} 39. c7 {[%clk 0:00:30]}  Qc1 {[%clk 0:00:05]} 40. a7 {[%clk 0:00:24]}  Bd2 {[%clk 0:00:04]} 41. Qxd2 {[%clk 0:00:20]}  Qxd2 {[%clk 0:00:05]} 42. c8=Q {[%clk 0:00:18]}  b1=Q {[%clk 0:00:03]} 43. Qe8 {[%clk 0:00:14]}  Qdd3+ {[%clk 0:00:01]} 44. Kf2 {[%clk 0:00:15]}  Qe3+ {[%clk 0:00:01]} 45. Qxe3 {[%clk 0:00:13]}  dxe3+ {[%clk 0:00:02]} 46. Ke2 {[%clk 0:00:14]}  Qa2+ {[%clk 0:00:02]} 47. Kd3 {[%clk 0:00:14]}  Qxa7 {[%clk 0:00:03]} 48. Ke4 {[%clk 0:00:15]}  Qe7+ {[%clk 0:00:03]} 49. Kxf4 {[%clk 0:00:15]}  e2 {[%clk 0:00:04]} 50. Kg3 {[%clk 0:00:16]}  Qe3 {[%clk 0:00:04]} 51. Nd3 {[%clk 0:00:17]}  Qxd3 {[%clk 0:00:04]} 52. Kg4 {[%clk 0:00:17]}  Qd2 {[%clk 0:00:04]} 53. f4 {[%clk 0:00:18]}  f5+ {[%clk 0:00:04]} 54. Kg5 {[%clk 0:00:18]}  e1=Q {[%clk 0:00:04]} 55. h4 {[%clk 0:00:19]}  Qg3# {[%clk 0:00:04]} 0-1

[Event "December 19 Late 2023"]
[Site "https://www.chess.com"]
[Date "2023.12.19"]
[Round "7"]
[White "Bardyk, Artem"]
[Black "Dwilewicz, Katarzyna"]
[Result "1-0"]
[Board "95"]
[TimeControl "180+1"]
[WhiteFideId "34349979"]
[BlackFideId "1148486"]
[WhiteElo "2300"]
[BlackElo "2098"]
[WhiteTeam "RUS"]
[BlackTeam "POL"]
[WhiteClock "0:01:21"]
[BlackClock "0:00:00"]

1. e4 {[%clk 0:02:57]}  c5 {[%clk 0:02:59]} 2. c3 {[%clk 0:02:57]}  d5 {[%clk 0:02:56]} 3. exd5 {[%clk 0:02:58]}  Qxd5 {[%clk 0:02:56]} 4. d4 {[%clk 0:02:59]}  Nf6 {[%clk 0:02:56]} 5. Nf3 {[%clk 0:02:59]}  e6 {[%clk 0:02:56]} 6. Na3 {[%clk 0:02:58]}  Nc6 {[%clk 0:02:54]} 7. Be3 {[%clk 0:02:58]}  Be7 {[%clk 0:02:50]} 8. Nb5 {[%clk 0:02:50]}  Qd8 {[%clk 0:02:48]} 9. dxc5 {[%clk 0:02:50]}  Nd5 {[%clk 0:02:44]} 10. Qd2 {[%clk 0:02:16]}  Nxe3 {[%clk 0:02:34]} 11. Qxe3 {[%clk 0:02:17]}  O-O {[%clk 0:02:23]} 12. Rd1 {[%clk 0:02:15]}  Qa5 {[%clk 0:02:20]} 13. Bc4 {[%clk 0:02:07]}  a6 {[%clk 0:02:13]} 14. Nd6 {[%clk 0:02:06]}  Qc7 {[%clk 0:01:15]} 15. O-O {[%clk 0:02:02]}  Bd7 {[%clk 0:01:14]} 16. Rd2 {[%clk 0:01:56]}  Na5 {[%clk 0:01:09]} 17. Bd3 {[%clk 0:01:53]}  g6 {[%clk 0:00:47]} 18. Rfd1 {[%clk 0:01:51]}  Rad8 {[%clk 0:00:36]} 19. b4 {[%clk 0:01:44]}  Nc6 {[%clk 0:00:35]} 20. Be4 {[%clk 0:01:45]}  f5 {[%clk 0:00:22]} 21. Bc2 {[%clk 0:01:43]}  Bf6 {[%clk 0:00:19]} 22. Bb3 {[%clk 0:01:43]}  Kg7 {[%clk 0:00:14]} 23. Bxe6 {[%clk 0:01:42]}  Bxe6 {[%clk 0:00:15]} 24. Qxe6 {[%clk 0:01:42]}  Qe7 {[%clk 0:00:06]} 25. Qxe7+ {[%clk 0:01:39]}  Nxe7 {[%clk 0:00:06]} 26. Nd4 {[%clk 0:01:29]}  Bxd4 {[%clk 0:00:05]} 27. Rxd4 {[%clk 0:01:30]}  Nc6 {[%clk 0:00:04]} 28. R4d2 {[%clk 0:01:28]}  Rb8 {[%clk 0:00:04]} 29. a4 {[%clk 0:01:26]}  Kf6 {[%clk 0:00:04]} 30. b5 {[%clk 0:01:26]}  axb5 {[%clk 0:00:04]} 31. axb5 {[%clk 0:01:27]}  Ne5 {[%clk 0:00:05]} 32. f4 {[%clk 0:01:27]}  Nf7 {[%clk 0:00:05]} 33. Nxf7 {[%clk 0:01:26]}  Rxf7 {[%clk 0:00:05]} 34. Rd6+ {[%clk 0:01:26]}  Kg7 {[%clk 0:00:03]} 35. Rd7 {[%clk 0:01:27]}  Rf8 {[%clk 0:00:02]} 36. Kf2 {[%clk 0:01:22]}  Kf6 {[%clk 0:00:02]} 37. R1d6+ {[%clk 0:01:22]}  Kg7 {[%clk 0:00:03]} 38. Ke3 {[%clk 0:01:22]}  Rc8 {[%clk 0:00:02]} 39. Kd4 {[%clk 0:01:21]}  Kf8 {[%clk 0:00:02]} 40. Rxf7+ {[%clk 0:01:21]}  Kxf7 {[%clk 0:00:03]} 41. Rd7+ {[%clk 0:01:21]}  Ke6 {[%clk 0:00:04]} 42. Rxb7 {[%clk 0:01:21]}  Rd8+ {[%clk 0:00:04]} 43. Kc4 {[%clk 0:01:21]}  Rd2 {[%clk 0:00:05]} 44. c6 {[%clk 0:01:21]}  Rxg2 {[%clk 0:00:05]} 45. Rxh7 {[%clk 0:01:21]}  Kd6 {[%clk 0:00:00]} 46. c7 {[%clk 0:01:21]} 1-0

[Event "December 19 Late 2023"]
[Site "https://www.chess.com"]
[Date "2023.12.19"]
[Round "7"]
[White "ajian"]
[Black "WoolworthsManly"]
[Result "0-1"]
[Board "96"]
[TimeControl "180+1"]
[WhiteElo "2402"]
[BlackElo "2662"]
[WhiteClock "0:00:01"]
[BlackClock "0:01:00"]

1. d4 {[%clk 0:03:00]}  Nf6 {[%clk 0:02:52]} 2. c4 {[%clk 0:03:00]}  d6 {[%clk 0:02:49]} 3. Nf3 {[%clk 0:03:00]}  Bg4 {[%clk 0:02:48]} 4. Nc3 {[%clk 0:02:58]}  Nbd7 {[%clk 0:02:45]} 5. e4 {[%clk 0:02:57]}  e5 {[%clk 0:02:44]} 6. Be2 {[%clk 0:02:55]}  Bxf3 {[%clk 0:02:40]} 7. Bxf3 {[%clk 0:02:54]}  exd4 {[%clk 0:02:40]} 8. Qxd4 {[%clk 0:02:55]}  g6 {[%clk 0:02:40]} 9. O-O {[%clk 0:02:54]}  Bg7 {[%clk 0:02:40]} 10. Qd1 {[%clk 0:02:51]}  O-O {[%clk 0:02:40]} 11. Be3 {[%clk 0:02:46]}  Re8 {[%clk 0:02:37]} 12. Qc2 {[%clk 0:02:26]}  a5 {[%clk 0:02:37]} 13. Be2 {[%clk 0:02:18]}  c6 {[%clk 0:02:28]} 14. Rad1 {[%clk 0:02:16]}  Qc7 {[%clk 0:02:24]} 15. f3 {[%clk 0:01:48]}  Rad8 {[%clk 0:02:23]} 16. Qd2 {[%clk 0:01:46]}  Nc5 {[%clk 0:02:20]} 17. Bd4 {[%clk 0:01:34]}  Nh5 {[%clk 0:02:01]} 18. Bxg7 {[%clk 0:01:17]}  Nxg7 {[%clk 0:02:02]} 19. Qd4 {[%clk 0:01:13]}  Qe7 {[%clk 0:01:56]} 20. Rfe1 {[%clk 0:01:10]}  Qe5 {[%clk 0:01:54]} 21. Qe3 {[%clk 0:01:00]}  f5 {[%clk 0:01:53]} 22. f4 {[%clk 0:00:56]}  Qe7 {[%clk 0:01:46]} 23. e5 {[%clk 0:00:56]}  dxe5 {[%clk 0:01:32]} 24. fxe5 {[%clk 0:00:50]}  Rxd1 {[%clk 0:01:30]} 25. Bxd1 {[%clk 0:00:47]}  Nge6 {[%clk 0:01:29]} 26. a3 {[%clk 0:00:42]}  Rd8 {[%clk 0:01:21]} 27. Bc2 {[%clk 0:00:34]}  Kg7 {[%clk 0:01:21]} 28. b4 {[%clk 0:00:29]}  axb4 {[%clk 0:01:20]} 29. axb4 {[%clk 0:00:29]}  Na6 {[%clk 0:01:21]} 30. Qb6 {[%clk 0:00:20]}  Qxb4 {[%clk 0:01:16]} 31. Qxb4 {[%clk 0:00:11]}  Nxb4 {[%clk 0:01:16]} 32. Bb3 {[%clk 0:00:09]}  Rd3 {[%clk 0:01:13]} 33. Rc1 {[%clk 0:00:08]}  Nd4 {[%clk 0:01:12]} 34. Bd1 {[%clk 0:00:06]}  Kf7 {[%clk 0:01:04]} 35. Rb1 {[%clk 0:00:06]}  Rxc3 {[%clk 0:01:04]} 36. Rxb4 {[%clk 0:00:06]}  Rc1 {[%clk 0:01:02]} 37. Rxb7+ {[%clk 0:00:06]}  Ke6 {[%clk 0:01:03]} 38. Kf2 {[%clk 0:00:06]}  Rxd1 {[%clk 0:01:03]} 39. Rxh7 {[%clk 0:00:06]}  Kxe5 {[%clk 0:01:03]} 40. Rg7 {[%clk 0:00:06]}  Rd2+ {[%clk 0:01:01]} 41. Ke3 {[%clk 0:00:05]}  Rxg2 {[%clk 0:01:00]} 42. Rf7 {[%clk 0:00:01]}  Ne6 {[%clk 0:01:00]} 0-1